[Event "CIS Master Groups 2024"]
[Site "Vasto"]
[Date "2024.04.13"]
[Round "8.2"]
[White "Basso, Pier Luigi"]
[Black "Brunello, Sabino"]
[Result "1/2-1/2"]
[ECO "D51"]
[WhiteElo "2507"]
[BlackElo "2515"]
[Annotator "RC"]
[PlyCount "27"]
[EventDate "2024.04.07"]
[EventType "team-tourn"]
[EventCountry "ITA"]
[SourceTitle "playchess.com"]
[Source "ChessBase"]
[SourceQuality "1"]
[TimeControl "40/5400+30:900+30"]

1. d4 {[%emt 0:03:20]} Nf6 {[%emt 0:00:17]} 2. c4 {[%emt 0:00:07]} e6 {[%emt 0:00:10]} 3. Nf3 {[%emt 0:00:07]} d5 {[%emt 0:00:34]} 4. Nc3 {[%emt 0:00:06]} Nbd7 {[%emt 0:00:46]} 5. Bg5 {[%emt 0:03:15]} dxc4 {[%emt 0:08:45]} 6. e4 {[%emt 0:04:40]} h6 {[%emt 0:00:05]} 7. Bh4 {[%emt 0:07:49]} b5 {[%emt 0:10:04]} 8. Nxb5 {[%emt 0:13:06]} Bb4+ {[%emt 0:09:42]} 9. Nc3 {[%emt 0:00:11]} g5 {[%emt 0:01:21]} 10. Bg3 {[%emt 0:00:06]} Nxe4 {[%emt 0:03:06]} 11. Qc2 {[%emt 0:00:08]} Bb7 {[%emt 0:03:43]} 12. Bxc4 {[%emt 0:05:40]} g4 {[%emt 0:15:14]} 13. Nh4 {[%emt 0:12:42]} Nxg3 {[%emt 0:07:21]} 14. hxg3 {[%emt 0:02:45]} 1/2-1/2

[Event "CIS Master Groups 2024"]
[Site "Vasto"]
[Date "2024.04.13"]
[Round "8.3"]
[White "Dvirnyy, Danyyil"]
[Black "Di Benedetto, Edoardo"]
[Result "1-0"]
[ECO "D37"]
[WhiteElo "2480"]
[BlackElo "2400"]
[Annotator "RC"]
[PlyCount "137"]
[EventDate "2024.04.07"]
[EventType "team-tourn"]
[EventCountry "ITA"]
[SourceTitle "playchess.com"]
[Source "ChessBase"]
[SourceQuality "1"]
[TimeControl "40/5400+30:900+30"]

1. d4 {[%emt 0:00:02]} d5 {[%emt 0:00:11]} 2. c4 {[%emt 0:00:04]} e6 {[%emt 0:00:04]} 3. Nc3 {[%emt 0:00:03]} Nf6 {[%emt 0:00:06]} 4. Nf3 {[%emt 0:02:02]} Be7 {[%emt 0:00:18]} 5. Bf4 {[%emt 0:00:36]} O-O {[%emt 0:00:15]} 6. e3 {[%emt 0:00:04]} c5 {[%emt 0:06:55]} 7. dxc5 {[%emt 0:00:30]} Bxc5 {[%emt 0:00:17]} 8. a3 {[%emt 0:00:10]} Nc6 {[%emt 0:00:21]} 9. Qc2 {[%emt 0:00:54]} Qa5 {[%emt 0:00:33]} 10. Nd2 {[%emt 0:06:07]} Bb4 {[%emt 0:06:41]} 11. Rc1 {[%emt 0:02:05]} Bxc3 {[%emt 0:00:23]} 12. Qxc3 {[%emt 0:00:06]} Qxc3 {[%emt 0:00:37]} 13. Rxc3 {[%emt 0:00:06]} e5 {[%emt 0:03:34]} 14. Bg3 {[%emt 0:05:21]} Be6 {[%emt 0:07:52]} 15. cxd5 {[%emt 0:07:54]} Nxd5 {[%emt 0:00:51]} 16. Rc5 {[%emt 0:00:51]} f6 {[%emt 0:09:06]} 17. Bb5 {[%emt 0:03:13]} Rac8 {[%emt 0:02:51]} 18. Ke2 {[%emt 0:08:27]} Nce7 {[%emt 0:01:12]} 19. Rhc1 {[%emt 0:14:39]} Rxc5 {[%emt 0:00:28]} 20. Rxc5 {[%emt 0:00:07]} Rc8 {[%emt 0:00:07]} 21. Rxc8+ {[%emt 0:02:04]} Nxc8 {[%emt 0:00:23]} 22. Ne4 {[%emt 0:01:52]} Ndb6 {[%emt 0:10:56]} 23. Nc5 {[%emt 0:03:37]} Bc4+ {[%emt 0:00:15]} 24. Bxc4+ {[%emt 0:00:06]} Nxc4 {[%emt 0:00:04]} 25. Kd3 {[%emt 0:04:46]} N4d6 {[%emt 0:01:30]} 26. f4 {[%emt 0:01:19]} exf4 {[%emt 0:00:23]} 27. Bxf4 {[%emt 0:00:21]} Kf7 {[%emt 0:01:31]} 28. e4 {[%emt 0:00:55]} b6 {[%emt 0:04:19]} 29. Na6 {[%emt 0:00:39]} Ke6 {[%emt 0:01:10]} 30. a4 {[%emt 0:02:39]} Nf7 {[%emt 0:07:36]} 31. Nc7+ {[%emt 0:03:14]} Kd7 {[%emt 0:00:24]} 32. Nb5 {[%emt 0:00:40]} Ne5+ {[%emt 0:01:05]} 33. Kd4 {[%emt 0:05:32]} Nc6+ {[%emt 0:01:09]} 34. Kc4 {[%emt 0:03:29]} N8e7 {[%emt 0:02:26]} 35. b4 {[%emt 0:04:05]} Ng6 {[%emt 0:00:43]} 36. Bg3 {[%emt 0:00:35]} Nge5+ {[%emt 0:01:17]} 37. Kc3 {[%emt 0:00:24]} Nf7 {[%emt 0:04:38]} 38. Bf4 {[%emt 0:02:33]} Nfd8 {[%emt 0:01:13]} 39. Kc4 {[%emt 0:01:41]} Ne6 {[%emt 0:01:34]} 40. Bg3 {[%emt 0:00:10]} a5 {[%emt 0:04:43]} 41. bxa5 {[%emt 0:15:43]} Nxa5+ {[%emt 0:15:57]} 42. Kd5 {[%emt 0:01:37]} Nc6 {[%emt 0:12:12]} 43. Bd6 {[%emt 0:01:01]} Ncd8 {[%emt 0:01:17]} 44. g4 {[%emt 0:01:31]} Nb7 {[%emt 0:03:41]} 45. Bg3 {[%emt 0:00:20]} Nbc5 {[%emt 0:00:34]} 46. Nc3 {[%emt 0:00:12]} Nb7 {[%emt 0:00:00]} 47. h4 {[%emt 0:00:00]} Na5 {[%emt 0:00:00]} 48. h5 {[%emt 0:00:00]} Nc6 {[%emt 0:00:00]} 49. Kc4 {[%emt 0:00:00]} Nc7 {[%emt 0:01:25]} 50. Bxc7 {[%emt 0:00:00]} Kxc7 {[%emt 0:00:04]} 51. Nd5+ {[%emt 0:00:00]} Kd6 {[%emt 0:03:10]} 52. Kb5 {[%emt 0:00:00]} Nd4+ {[%emt 0:01:07]} 53. Kxb6 {[%emt 0:00:00]} Nb3 {[%emt 0:00:14]} 54. Kb5 {[%emt 0:01:48]} Ke5 {[%emt 0:00:36]} 55. Kb4 {[%emt 0:02:31]} Nd4 {[%emt 0:00:04]} 56. Kc4 {[%emt 0:00:39]} Nc6 {[%emt 0:00:17]} 57. Nb4 {[%emt 0:04:21]} Na5+ {[%emt 0:00:17]} 58. Kb5 {[%emt 0:00:33]} Nb7 {[%emt 0:00:31]} 59. Nd3+ {[%emt 0:01:43]} Kd4 {[%emt 0:00:05]} 60. Kb6 {[%emt 0:01:08]} Nd6 {[%emt 0:00:10]} 61. Nb2 {[%emt 0:01:54]} Nxe4 {[%emt 0:00:28]} 62. a5 {[%emt 0:00:18]} Nc5 {[%emt 0:00:19]} 63. Nd3 {[%emt 0:01:19]} Ne4 {[%emt 0:00:24]} 64. Kc6 {[%emt 0:00:52]} Kxd3 {[%emt 0:02:12]} 65. a6 {[%emt 0:00:04]} Nf2 {[%emt 0:00:18]} 66. a7 {[%emt 0:00:05]} Nxg4 {[%emt 0:00:03]} 67. a8=Q {[%emt 0:00:05]} Ke4 {[%emt 0:00:15]} 68. Qg8 {[%emt 0:00:29]} g6 {[%emt 0:00:28]} 69. Qxh7 {[%emt 0:00:19]} 1-0

[Event "CIS Master Groups 2024"]
[Site "Vasto"]
[Date "2024.04.13"]
[Round "8.4"]
[White "Ladron De Guevara Pinto, Paolo"]
[Black "Gilevych, Artem"]
[Result "1/2-1/2"]
[ECO "D41"]
[WhiteElo "2394"]
[BlackElo "2417"]
[Annotator "RC"]
[PlyCount "49"]
[EventDate "2024.04.07"]
[EventType "team-tourn"]
[EventCountry "ITA"]
[SourceTitle "playchess.com"]
[Source "ChessBase"]
[SourceQuality "1"]
[TimeControl "40/5400+30:900+30"]

1. d4 {[%emt 0:00:04]} d5 {[%emt 0:00:04]} 2. c4 {[%emt 0:00:06]} e6 {[%emt 0:00:09]} 3. Nc3 {[%emt 0:00:14]} Nf6 {[%emt 0:01:00]} 4. Nf3 {[%emt 0:01:13]} c5 {[%emt 0:00:17]} 5. cxd5 {[%emt 0:01:07]} cxd4 {[%emt 0:00:16]} 6. Qa4+ {[%emt 0:06:36]} Bd7 {[%emt 0:00:49]} 7. Qxd4 {[%emt 0:00:18]} exd5 {[%emt 0:00:14]} 8. Bg5 {[%emt 0:15:16]} Nc6 {[%emt 0:02:05]} 9. Qd2 {[%emt 0:07:33]} Be6 {[%emt 0:04:35]} 10. e3 {[%emt 0:02:38]} h6 {[%emt 0:00:42]} 11. Bxf6 {[%emt 0:06:34]} Qxf6 {[%emt 0:00:48]} 12. Bb5 {[%emt 0:08:14]} Bb4 {[%emt 0:02:41]} 13. Nd4 {[%emt 0:15:37]} Rc8 {[%emt 0:12:02]} 14. a3 {[%emt 0:04:57]} Bc5 {[%emt 0:17:26]} 15. Rc1 {[%emt 0:05:41]} Bxd4 {[%emt 0:10:05]} 16. exd4 {[%emt 0:00:49]} O-O {[%emt 0:06:51]} 17. Bxc6 {[%emt 0:00:19]} Rxc6 {[%emt 0:00:31]} 18. O-O {[%emt 0:00:05]} Rc4 {[%emt 0:06:59]} 19. Ne2 {[%emt 0:04:57]} Qg5 {[%emt 0:07:39]} 20. Qxg5 {[%emt 0:01:09]} hxg5 {[%emt 0:00:04]} 21. b3 {[%emt 0:00:12]} Rxc1 {[%emt 0:01:43]} 22. Rxc1 {[%emt 0:00:03]} Rc8 {[%emt 0:00:07]} 23. Rxc8+ {[%emt 0:01:01]} Bxc8 {[%emt 0:00:02]} 24. f3 {[%emt 0:00:59]} f6 {[%emt 0:01:22]} 25. Nc3 {[%emt 0:00:21]} 1/2-1/2

[Event "CIS Master Groups 2024"]
[Site "Vasto"]
[Date "2024.04.13"]
[Round "8.5"]
[White "Favaloro, Andrea"]
[Black "Mastrovasilis, Dimitrios"]
[Result "1/2-1/2"]
[ECO "C49"]
[WhiteElo "2412"]
[BlackElo "2576"]
[Annotator "TA"]
[PlyCount "45"]
[EventDate "2024.04.07"]
[EventType "team-tourn"]
[EventCountry "ITA"]
[SourceTitle "playchess.com"]
[Source "ChessBase"]
[SourceQuality "1"]
[TimeControl "40/5400+30:900+30"]

{[%evp 17,45,0,2,6,14,9,19,0,0,0,0,0,0,0,28,21,26,25,27,6,4,0,0,0,0,0,0,0,0,0]} 1. e4 {[%emt 0:01:27]} e5 {[%emt 0:00:24]} 2. Nf3 {[%emt 0:00:48]} Nc6 {[%emt 0:00:18]} 3. Nc3 {[%emt 0:00:23]} Nf6 {[%emt 0:00:34]} 4. Bb5 {[%emt 0:00:34]} Bb4 {[%emt 0:02:38]} 5. O-O {[%emt 0:00:40]} O-O {[%emt 0:00:30]} 6. Bxc6 {[%emt 0:00:43]} dxc6 {[%emt 0:06:41]} 7. Nxe5 {[%emt 0:01:43]} Re8 {[%emt 0:07:05]} 8. Nd3 {[%emt 0:00:35]} Bxc3 {[%emt 0:02:24]} 9. dxc3 {[%emt 0:00:23]} Nxe4 {[%emt 0:00:54]} 10. Bf4 {[%emt 0:01:32]} Bf5 {[%emt 0:05:13]} 11. Re1 {[%emt 0:01:42]} Qd7 {[%emt 0:10:00]} 12. h3 {[%emt 0:05:12]} f6 {[%emt 0:05:14]} 13. Qf3 {[%emt 0:02:24]} Bg6 {[%emt 0:02:49]} 14. Re3 {[%emt 0:07:42]} Nd6 {[%emt 0:10:17]} 15. Rae1 {[%emt 0:04:26]} Bxd3 {[%emt 0:03:25]} 16. cxd3 {[%emt 0:02:25]} Rxe3 {[%emt 0:00:11]} 17. Rxe3 {[%emt 0:00:52]} Re8 {[%emt 0:00:17]} 18. Bxd6 {[%emt 0:06:15]} cxd6 {[%emt 0:00:45] The position is equal.} 19. Qe2 {[%emt 0:00:28]} Re5 {[%emt 0:06:55]} 20. d4 {[%emt 0:00:30]} Rxe3 {[%emt 0:00:08]} 21. Qxe3 {[%emt 0:00:12]} d5 {[%emt 0:00:46]} 22. Qf4 {[%emt 0:02:37]} a6 {[%emt 0:02:09]} 23. Kf1 {[%emt 0:00:22] Not much happened in this game.   Weighted Error Value: White=0.04 (flawless) /Black=0.03 (flawless) .  Inaccurate:     	---       	Black=1      OK:         	White=4     	Black=8} 1/2-1/2

[Event "CIS Master Groups 2024"]
[Site "Vasto"]
[Date "2024.04.13"]
[Round "8.7"]
[White "Bifulco, Michel"]
[Black "Altini, Nicola"]
[Result "1/2-1/2"]
[ECO "B31"]
[WhiteElo "2303"]
[BlackElo "2393"]
[Annotator "RC"]
[PlyCount "38"]
[EventDate "2024.04.07"]
[EventType "team-tourn"]
[EventCountry "ITA"]
[SourceTitle "playchess.com"]
[Source "ChessBase"]
[SourceQuality "1"]
[TimeControl "40/5400+30:900+30"]

1. e4 {[%emt 0:00:03]} c5 {[%emt 0:00:03]} 2. Nf3 {[%emt 0:00:04]} Nc6 {[%emt 0:00:02]} 3. Bb5 {[%emt 0:00:07]} g6 {[%emt 0:00:03]} 4. Bxc6 {[%emt 0:00:09]} bxc6 {[%emt 0:00:03]} 5. d4 {[%emt 0:00:05]} Bg7 {[%emt 0:13:39]} 6. dxc5 {[%emt 0:00:20]} Qa5+ {[%emt 0:07:02]} 7. Nbd2 {[%emt 0:00:20]} Ba6 {[%emt 0:15:38]} 8. Rb1 {[%emt 0:02:42]} Qxc5 {[%emt 0:09:37]} 9. c4 {[%emt 0:00:25]} Nh6 {[%emt 0:07:06]} 10. O-O {[%emt 0:00:47]} O-O {[%emt 0:04:35]} 11. b4 {[%emt 0:01:29]} Qh5 {[%emt 0:01:44]} 12. Bb2 {[%emt 0:03:38]} f6 {[%emt 0:02:25]} 13. Re1 {[%emt 0:03:42]} d6 {[%emt 0:04:29]} 14. Qa4 {[%emt 0:14:23]} Bb7 {[%emt 0:03:39]} 15. Nf1 {[%emt 0:00:01]} g5 {[%emt 0:00:30]} 16. Qa5 {[%emt 0:03:51]} Qf7 {[%emt 0:07:32]} 17. c5 {[%emt 0:05:17]} g4 {[%emt 0:10:32]} 18. Nh4 {[%emt 0:06:25]} dxc5 {[%emt 0:02:57]} 19. bxc5 {[%emt 0:02:55]} Bc8 {[%emt 0:00:12]} 1/2-1/2

[Event "CIS Master Groups 2024"]
[Site "Vasto"]
[Date "2024.04.13"]
[Round "8.8"]
[White "Piscopo, Pierluigi"]
[Black "Mazzilli, Piero"]
[Result "1/2-1/2"]
[ECO "B53"]
[WhiteElo "2312"]
[BlackElo "2311"]
[Annotator "RC"]
[PlyCount "38"]
[EventDate "2024.04.07"]
[EventType "team-tourn"]
[EventCountry "ITA"]
[SourceTitle "playchess.com"]
[Source "ChessBase"]
[SourceQuality "1"]
[TimeControl "40/5400+30:900+30"]

1. e4 {[%emt 0:00:03]} c5 {[%emt 0:00:02]} 2. Nf3 {[%emt 0:00:09]} d6 {[%emt 0:00:03]} 3. d4 {[%emt 0:00:15]} cxd4 {[%emt 0:00:05]} 4. Qxd4 {[%emt 0:00:07]} a6 {[%emt 0:01:20]} 5. h3 {[%emt 0:02:01]} Nc6 {[%emt 0:02:11]} 6. Qe3 {[%emt 0:00:07]} Nf6 {[%emt 0:03:23]} 7. Be2 {[%emt 0:00:21]} e6 {[%emt 0:04:41]} 8. O-O {[%emt 0:01:11]} Qc7 {[%emt 0:02:17]} 9. c4 {[%emt 0:04:01]} Be7 {[%emt 0:01:59]} 10. Nc3 {[%emt 0:00:22]} O-O {[%emt 0:04:37]} 11. Rd1 {[%emt 0:01:27]} Bd7 {[%emt 0:20:18]} 12. b3 {[%emt 0:05:20]} Rfd8 {[%emt 0:04:55]} 13. Bb2 {[%emt 0:08:36]} Ne5 {[%emt 0:19:22]} 14. Nd4 {[%emt 0:07:20]} Rac8 {[%emt 0:02:58]} 15. Rd2 {[%emt 0:07:09]} Qa5 {[%emt 0:04:43]} 16. Rad1 {[%emt 0:13:20]} h6 {[%emt 0:00:07]} 17. a4 {[%emt 0:05:01]} Ng6 {[%emt 0:04:33]} 18. g3 {[%emt 0:08:23]} Ne8 {[%emt 0:05:53]} 19. Bf1 {[%emt 0:04:04]} Qb4 {[%emt 0:05:23]} 1/2-1/2

[Event "CIS Master Groups 2024"]
[Site "Vasto"]
[Date "2024.04.13"]
[Round "8.9"]
[White "Fier, Alexandr"]
[Black "Shevchenko, Kirill"]
[Result "1/2-1/2"]
[ECO "C54"]
[WhiteElo "2566"]
[BlackElo "2675"]
[Annotator "TA"]
[PlyCount "106"]
[EventDate "2024.04.07"]
[EventType "team-tourn"]
[EventCountry "ITA"]
[SourceTitle "playchess.com"]
[Source "ChessBase"]
[SourceQuality "1"]
[TimeControl "40/5400+30:900+30"]

{[%evp 40,106,-60,-57,0,0,0,-2,0,0,0,-12,0,0,-7,-69,-50,-57,-57,-57,0,0,0,-70,-43,-39,-52,-39,-37,-42,-39,-45,0,0,25,25,21,0,0,0,54,0,0,0,8,0,0,0,0,0,0,0,0,0,0,0,0,0,2,0,0,0,0,0,0,0,0,0,0]} 1. e4 {[%emt 0:00:03]} e5 {[%emt 0:00:41]} 2. Nf3 {[%emt 0:00:06]} Nc6 {[%emt 0:00:08]} 3. Bc4 {[%emt 0:00:04]} Nf6 {[%emt 0:01:08]} 4. d3 {[%emt 0:00:05]} h6 {[%emt 0:00:34]} 5. O-O {[%emt 0:00:13]} Bc5 {[%emt 0:00:06]} 6. c3 {[%emt 0:01:24]} d6 {[%emt 0:00:59]} 7. Nbd2 {[%emt 0:00:55]} O-O {[%emt 0:02:08]} 8. h3 {[%emt 0:00:12]} Bb6 {[%emt 0:02:31] C54: Giuoco Piano: 4 c3 Nf6, main lines with 5 d4 and 5 d3.} 9. a4 {[%emt 0:00:38]} a5 {[%emt 0:04:38]} 10. Re1 {[%emt 0:00:40]} Kh8 {[%emt 0:16:40]} 11. Nf1 $146 {[%emt 0:07:35]} ({Predecessor:} 11. Qb3 Qe7 12. Nf1 Nd8 13. Be3 Bxe3 14. Nxe3 c6 15. Rad1 Nh7 16. d4 Ng5 17. Nxg5 Qxg5 18. dxe5 dxe5 {½-½ Kawalko,A (1950)-Orlik,S (1738) Polanica Zdroj op-C 56th 2020 (3)}) 11... Be6 {[%emt 0:03:13]} 12. Bxe6 {[%emt 0:00:16]} fxe6 {[%emt 0:00:02]} 13. Be3 {[%emt 0:00:04]} Bxe3 {[%emt 0:03:09]} 14. Rxe3 {[%emt 0:00:05]} d5 {[%emt 0:06:47]} 15. Qb3 {[%emt 0:04:42]} Qd6 {[%emt 0:03:13]} 16. Ng3 {[%emt 0:00:40]} d4 {[%emt 0:12:59]} 17. Ree1 {[%emt 0:05:02]} Nd7 {[%emt 0:01:20]} 18. Qa3 {[%emt 0:17:07]} Nc5 {[%emt 0:08:13]} 19. Red1 {[%emt 0:00:38]} b6 {[%emt 0:06:53]} 20. Rac1 {[%emt 0:14:09]} dxc3 {[%emt 0:02:14]} (20... Rxf3 $17 21. gxf3 Qf8) 21. bxc3 $15 {[%emt 0:00:11] [#]} Nxe4 {[%emt 0:00:46]} (21... Nxd3 $2 22. Qxd6 cxd6 23. Rxd3 $18) (21... Rxf3 $1 $15 22. gxf3 Rf8) 22. Qxd6 $11 {[%emt 0:00:03]} Nxd6 {[%emt 0:00:03]} 23. Re1 {[%emt 0:00:04]} Nf7 {[%emt 0:11:22]} 24. Re4 {[%emt 0:03:03]} Nd6 {[%emt 0:00:27]} 25. Ree1 {[%emt 0:00:06]} Nf7 {[%emt 0:00:42]} 26. Re4 {[%emt 0:00:04]} Rac8 {[%emt 0:00:15]} 27. Rc4 {[%emt 0:00:57]} (27. Rce1 $11) 27... Nb8 $15 {[%emt 0:04:05]} 28. Re1 {[%emt 0:16:09]} Nd7 $1 {[%emt 0:00:15]} 29. Rc6 {[%emt 0:00:22]} Nd8 {[%emt 0:00:28]} 30. Rc4 {[%emt 0:00:03]} Nf7 {[%emt 0:00:05]} 31. Rc6 {[%emt 0:00:02]} Nc5 {[%emt 0:02:07]} 32. Nxe5 {[%emt 0:02:26]} Nxe5 {[%emt 0:00:04]} (32... Nxa4 $2 33. Ng6+ (33. Rxe6 Nxe5 34. R1xe5 Nc5 $19) 33... Kg8 34. Ne7+ (34. Rcxe6 Nd6 $18) (34. Rexe6 Nd8 $19) 34... Kh7 35. Nxc8 (35. Rcxe6 Rcd8 $11) (35. Rexe6 Nd8 $17) 35... Rxc8 36. Rcxe6 $18 (36. Rexe6 Nd8 $18)) 33. Rxe5 {[%emt 0:00:03]} Nxa4 {[%emt 0:04:27]} 34. Rexe6 {[%emt 0:03:47]} Nc5 {[%emt 0:00:31]} 35. Re7 $1 {[%emt 0:00:02]} a4 {[%emt 0:04:06]} (35... Kg8 {simplifies} 36. Rcxc7 Rxc7 37. Rxc7 Nxd3 38. f3 Nc5) 36. Nh5 {[%emt 0:03:12]} Rfe8 {[%emt 0:00:34]} ({Weaker is} 36... Nxd3 37. Rxg7 (37. Rexc7 $2 Rxc7 38. Rxc7 Ra8 $19) (37. Rexc7 $2 Rxc7 38. Rxc7 Ra8 $19)) 37. Rxg7 {[%emt 0:07:21]} Re6 {[%emt 0:00:10]} 38. Rcxc7 {[%emt 0:00:03]} Rxc7 {[%emt 0:00:11]} 39. Rxc7 {[%emt 0:00:04]} Nxd3 {[%emt 0:00:12]} (39... Nb3 $1 $11 40. Rc4 b5 41. Rc8+ Kh7) 40. Ra7 {[%emt 0:00:08]} (40. c4 $1 $14) 40... b5 $11 {[%emt 0:01:22]} 41. Ra5 {[%emt 0:28:13]} Rb6 {[%emt 0:05:17]} 42. Kf1 {[%emt 0:00:00]} Nc5 {[%emt 0:04:14]} 43. Ke2 {[%emt 0:00:00]} Re6+ {[%emt 0:01:24]} 44. Kd1 $1 {[%emt 0:00:00]} Ne4 {[%emt 0:00:12]} 45. Kc2 {[%emt 0:00:00]} (45. Rxb5 $2 {too greedy.} Nxc3+ (45... Nxf2+ 46. Kd2 $11) 46. Kc2 Nxb5 $19) 45... Rc6 {[%emt 0:02:17]} 46. Rxb5 {[%emt 0:00:00]} Rxc3+ {[%emt 0:00:05]} 47. Kb2 {[%emt 0:00:00]} a3+ {[%emt 0:00:04]} 48. Ka2 {[%emt 0:00:00]} Nxf2 {[%emt 0:01:09]} 49. Rb3 {[%emt 0:00:00]} Rxb3 {[%emt 0:00:13]} 50. Kxb3 {[%emt 0:00:00]} Kh7 {[%emt 0:00:07]} 51. Nf4 {[%emt 0:00:00]} Kg7 {[%emt 0:00:17]} 52. Kxa3 {[%emt 0:00:00]} Kf6 {[%emt 0:00:06]} 53. Kb3 {[%emt 0:00:00]} Ke5 {[%emt 0:06:47]} 1/2-1/2

[Event "CIS Master Groups 2024"]
[Site "Vasto"]
[Date "2024.04.13"]
[Round "8.10"]
[White "Lodici, Lorenzo"]
[Black "Iermito, Sebastian"]
[Result "1-0"]
[ECO "C70"]
[WhiteElo "2565"]
[BlackElo "2511"]
[Annotator "TA"]
[PlyCount "139"]
[EventDate "2024.04.07"]
[EventType "team-tourn"]
[EventCountry "ITA"]
[SourceTitle "playchess.com"]
[Source "ChessBase"]
[SourceQuality "1"]
[TimeControl "40/5400+30:900+30"]

{[%evp 50,139,45,36,31,28,28,18,73,28,26,27,32,16,41,22,29,18,98,61,79,64,148,162,172,172,178,145,406,399,399,395,387,379,306,180,710,636,489,477,1616,1518,29938,12847,29943,29944,29946,29944,29974,29972,29969,29967,29964,29965,29965,29959,29954,29955,29957,29959,29962,29960,29969,29971,29971,29971,29968,29969,29970,29968,29984,29985,29985,29986,29986,29987,29987,29988,29988,29989,29989,29990,29991,29992,29992,29993,29994,29995,29995,29996,29996,29997]} 1. e4 {[%emt 0:02:18]} e5 {[%emt 0:00:03]} 2. Nf3 {[%emt 0:00:03]} Nc6 {[%emt 0:00:03]} 3. Bb5 {[%emt 0:00:51]} a6 {[%emt 0:00:14]} 4. Ba4 {[%emt 0:00:04]} b5 {[%emt 0:00:20]} 5. Bb3 {[%emt 0:00:05]} Na5 {[%emt 0:00:03]} 6. O-O {[%emt 0:02:58]} d6 {[%emt 0:00:08]} 7. d4 {[%emt 0:00:05]} exd4 {[%emt 0:00:17]} 8. Nxd4 {[%emt 0:00:21]} Bb7 {[%emt 0:00:51]} 9. Bd2 {[%emt 0:06:13]} Nxb3 {[%emt 0:00:10]} 10. Nxb3 {[%emt 0:00:04]} Nf6 {[%emt 0:01:30]} 11. Re1 {[%emt 0:00:05]} Be7 {[%emt 0:00:43]} 12. Na5 {[%emt 0:00:13]} Qc8 {[%emt 0:00:18]} 13. Qf3 {[%emt 0:08:31]} O-O {[%emt 0:03:52]} 14. Nc3 {[%emt 0:00:25]} Rb8 {[%emt 0:21:47]} 15. Rad1 {[%emt 0:05:46]} Ba8 {[%emt 0:05:40]} 16. Nd5 {[%emt 0:16:30]} Nxd5 {[%emt 0:02:52]} 17. exd5 {[%emt 0:00:03]} Bf6 {[%emt 0:00:07]} 18. Bc3 {[%emt 0:03:36]} Bxc3 {[%emt 0:00:23]} 19. Qxc3 {[%emt 0:00:02]} b4 {[%emt 0:08:39]} 20. Qf3 {[%emt 0:08:07]} Rb5 {[%emt 0:03:48]} 21. Nc4 {[%emt 0:01:31]} Re8 {[%emt 0:10:40]} 22. Rxe8+ {[%emt 0:04:33]} Qxe8 {[%emt 0:00:02]} 23. h4 {[%emt 0:00:25]} Rb8 {[%emt 0:05:27]} 24. h5 {[%emt 0:05:54]} h6 {[%emt 0:00:34]} 25. Rd4 {[%emt 0:02:17]} Qe1+ {[%emt 0:10:45]} 26. Kh2 {[%emt 0:00:08]} Qe7 {[%emt 0:00:21]} 27. Re4 {[%emt 0:07:54]} Qg5 {[%emt 0:00:26]} 28. Ne3 $1 {[%emt 0:00:13]} c6 {[%emt 0:07:35]} (28... Bxd5 $2 29. Nxd5 Rf8 (29... Qxd5 $2 30. Re8+ Rxe8 31. Qxd5 $18) 30. Ne7+ (30. Nxc7 Qa5 $18) (30. Nxb4 Kh7 $18) (30. Rxb4 c6 $18) 30... Kh7 31. Qf5+ Qxf5 32. Nxf5 $18) (28... a5 $1 $11 {keeps the balance.}) 29. Qf5 {[%emt 0:10:59]} (29. Nf5 $5 Kh7 30. Kg1 (30. Nxd6 c5 $14) (30. Re7 cxd5 31. Qd3 Kh8 $11) 30... Qc1+ 31. Kh2 $14) 29... cxd5 {[%emt 0:02:17]} 30. Qxg5 {[%emt 0:00:03]} (30. Rg4 {seems wilder.} Qe7 31. Qf4 Qe5 32. Nf5) 30... hxg5 {[%emt 0:00:07]} 31. Re7 {[%emt 0:00:03]} d4 {[%emt 0:08:57]} 32. Nf5 {[%emt 0:00:02]} Bd5 {[%emt 0:00:24]} 33. Nxd4 {[%emt 0:03:16]} Rc8 {[%emt 0:01:53]} (33... Kh7 $1 $11 {remains equal.}) 34. b3 $1 $16 {[%emt 0:01:40]} a5 {[%emt 0:02:01]} 35. f3 {[%emt 0:02:30]} Be6 {[%emt 0:02:40]} (35... Rc5 $14) 36. Nxe6 $16 {[%emt 0:01:57]} fxe6 {[%emt 0:00:01]} 37. Rxe6 {[%emt 0:00:04]} Rxc2 {[%emt 0:01:45]} 38. Rxd6 {[%emt 0:00:01]} Kh7 $2 {[%emt 0:01:06][%mdl 8192]} (38... Kf7 $16 {was called for.} 39. Rd5 Rxa2) 39. Rg6 $18 {[%emt 0:01:40]} Rxa2 {[%emt 0:00:32]} 40. Rxg5 {[%emt 0:00:02]} Kh6 {[%emt 0:00:34]} 41. Rb5 {[%emt 0:21:53]} Ra3 {[%emt 0:01:37]} 42. Kh3 {[%emt 0:00:00]} (42. Kg3 $142) 42... Rxb3 $2 {[%emt 0:00:52]} (42... g6 43. Kg4 gxh5+ 44. Rxh5+ Kg6) 43. Rxa5 $18 {[%emt 0:00:00]} Rc3 {[%emt 0:06:50]} 44. Kh4 {[%emt 0:00:00]} b3 {[%emt 0:01:08] [#]} (44... Rc6 $142 45. g4 g5+ 46. Rxg5 Rb6) 45. Rb5 $1 $18 {[%emt 0:00:00]} g5+ {[%emt 0:06:48] [#]} 46. hxg6 $1 {[%emt 0:00:00]} (46. Rxg5 Rc4+ 47. g4 Rb4 48. Rg6+ Kh7 $19) 46... Kxg6 {[%emt 0:00:06]} 47. f4 {[%emt 0:00:00]} Rc2 {[%emt 0:00:25]} 48. g4 {[%emt 0:00:00]} ({Not} 48. Rxb3 Rxg2 49. Rg3+ Rxg3 50. Kxg3 Kh7 $11) 48... b2 {[%emt 0:00:07]} 49. Rb6+ {[%emt 0:00:00]} Kf7 {[%emt 0:00:12]} 50. Kg5 {[%emt 0:00:00]} Ke7 {[%emt 0:00:39]} 51. f5 {[%emt 0:00:00]} Rg2 {[%emt 0:01:05]} 52. Kf4 {[%emt 0:00:00]} Rf2+ {[%emt 0:00:22]} 53. Kg3 {[%emt 0:00:00]} Rc2 {[%emt 0:00:39]} 54. g5 {[%emt 0:00:00]} Rd2 {[%emt 0:00:29]} 55. Kg4 {[%emt 0:00:21]} Rh2 {[%emt 0:01:01]} 56. g6 {[%emt 0:01:44]} Rg2+ {[%emt 0:00:19]} 57. Kf4 {[%emt 0:00:39]} Rf2+ {[%emt 0:00:37]} 58. Kg5 {[%emt 0:00:04]} Rg2+ {[%emt 0:00:14]} 59. Kh6 {[%emt 0:00:16]} b1=Q {[%emt 0:00:32]} 60. f6+ {[%emt 0:01:32]} Kf8 {[%emt 0:00:14]} 61. Rxb1 {[%emt 0:00:17]} Rh2+ {[%emt 0:00:01]} 62. Kg5 {[%emt 0:00:16]} Rg2+ {[%emt 0:00:02]} 63. Kf5 {[%emt 0:00:04]} Rf2+ {[%emt 0:00:03]} 64. Ke5 {[%emt 0:00:03]} Re2+ {[%emt 0:00:02]} 65. Kd4 {[%emt 0:00:03]} Rd2+ {[%emt 0:00:27]} 66. Ke3 {[%emt 0:00:05]} Rd8 {[%emt 0:00:05]} 67. Rb7 {[%emt 0:00:08]} Kg8 {[%emt 0:00:15]} 68. Kf4 {[%emt 0:00:10]} Kh8 {[%emt 0:00:26]} 69. Kg5 {[%emt 0:00:08]} Kg8 {[%emt 0:00:04]} 70. Kh6 {[%emt 0:00:03]} 1-0